bitfinex/quotes_ETHUSD_20241215
["timestamp","ask_amount","ask_price","bid_price","bid_amount"]
[1734300181989,2.59714,3850.4,3849.3,0.811]
[1734300182693,0.7902,3851.2,3849.6,0.811]
[1734300182967,3.0,3850.7,3849.6,0.811]
[1734300183917,0.55,3850.7,3849.6,0.811]
[1734300184143,0.55,3850.7,3849.5,2.59773]
[1734300184144,0.55,3850.7,3849.8,0.811]
[1734300184314,2.59713,3850.4,3849.8,0.811]
[1734300184519,3.55,3850.8,3849.8,0.811]
[1734300184842,6.14687,3850.8,3849.8,0.811]
[1734300185073,0.55,3850.8,3849.8,0.811]
[1734300185186,0.55,3850.9,3849.8,0.811]
[1734300185677,0.55,3851.1,3849.8,2.59753]
[1734300185820,0.55,3851.1,3849.9,0.811]
[1734300186118,3.14668,3851.1,3849.9,0.811]
[1734300186314,3.0,3850.8,3849.9,0.811]
[1734300186814,2.59694,3850.7,3849.9,0.811]
[1734300188306,0.55,3850.6,3849.9,0.811]
[1734300188507,2.59707,3850.5,3849.9,0.811]
[1734300189082,0.55,3850.6,3849.2,0.811]
[1734300189285,2.5974,3850.0,3849.2,0.811]
[1734300189490,2.59746,3850.0,3849.2,0.811]
[1734300190398,0.55,3850.1,3849.2,0.811]
[1734300190611,2.59761,3849.7,3849.2,0.811]
[1734300190979,2.59761,3849.7,3849.1,0.060345]
[1734300191781,0.55,3849.6,3849.1,0.060345]
[1734300192031,3.55,3849.6,3849.1,0.060345]
[1734300192212,0.55,3849.3,3849.1,0.060345]
[1734300193270,0.55,3849.5,3849.1,0.060345]
[1734300193517,0.55,3849.3,3849.1,0.060345]
[1734300193900,2.59794,3849.2,3849.1,0.060345]
[1734300194212,2.59794,3849.2,3848.8,0.771345]
[1734300194514,0.55,3849.6,3848.8,0.771345]
[1734300194515,0.55,3849.4,3848.8,0.771345]
[1734300194673,0.55,3849.5,3848.8,0.771345]
[1734300194880,2.59782,3849.4,3848.8,0.771345]
[1734300195113,0.55,3849.5,3848.8,0.771345]
[1734300195319,3.0,3850.1,3848.8,2.5982]
[1734300195515,3.0,3850.2,3848.9,0.25982]
[1734300195921,2.5972,3850.3,3848.9,0.25982]
[1734300195922,3.11250484,3850.3,3848.9,0.25982]
[1734300196079,3.11250484,3850.3,3848.4,2.59843]
[1734300196282,2.5972,3850.3,3848.9,2.59813]
[1734300196811,0.55,3850.2,3848.9,2.59813]
[1734300197215,3.0,3850.1,3849.0,0.811]
[1734300197383,3.0,3850.1,3848.9,2.59813]
[1734300197384,3.0,3850.1,3849.2,0.811]
[1734300197719,3.0,3850.7,3849.3,0.811]
[1734300197897,2.5969,3850.8,3849.6,0.811]
[1734300198091,2.5969,3850.8,3849.7,0.340872]
[1734300198414,0.50875898,3851.0,3849.7,0.340872]
[1734300198415,2.59704,3850.6,3849.7,0.340872]
[1734300198718,2.5978,3849.4,3848.7,0.811]
[1734300199121,0.7902,3849.8,3848.7,0.811]
[1734300199122,0.55,3849.5,3848.7,0.811]
[1734300199325,3.55,3849.5,3848.7,0.811]
[1734300199885,0.52257802,3850.0,3848.7,0.811]
[1734300200099,2.59748,3849.9,3848.7,0.811]
[1734300200335,3.0,3849.8,3848.7,0.811]
[1734300200533,0.52257802,3850.0,3848.7,0.811]
[1734300200840,3.0,3849.6,3848.7,0.811]
[1734300201541,5.59768,3849.6,3848.7,0.811]
[1734300201704,2.59768,3849.6,3848.7,0.811]
[1734300201904,0.55,3849.9,3848.7,0.811]
[1734300202131,0.55,3849.7,3848.7,0.811]
[1734300202333,0.55,3849.5,3848.7,0.811]
[1734300202844,2.59761,3849.7,3848.7,0.811]
[1734300203101,0.55,3849.6,3848.7,0.811]
[1734300203875,6.38751,3850.2,3848.7,0.811]
[1734300204172,3.0,3849.7,3848.7,0.811]
[1734300204490,0.55,3850.0,3848.7,0.811]
[1734300204623,3.14746,3850.0,3848.7,0.811]
[1734300204822,0.55,3849.8,3848.7,0.811]
[1734300205052,2.59788,3849.3,3848.7,0.811]
[1734300206066,2.5977,3849.6,3848.7,0.811]
[1734300206233,2.59771,3849.6,3848.7,0.811]
[1734300206669,0.55,3849.5,3848.7,0.811]
[1734300207347,0.55,3849.5,3848.7,1.151946]
[1734300207512,0.55,3849.5,3848.7,0.811]
[1734300207845,2.59768,3849.6,3848.8,0.7617]
[1734300209118,2.59754,3849.8,3848.8,0.7617]
[1734300209317,0.55,3849.7,3848.8,0.7617]
[1734300210668,2.59761,3849.7,3848.8,0.7617]
[1734300211237,0.55,3849.5,3848.8,0.7617]
[1734300211508,0.55,3849.7,3848.8,0.7617]
[1734300211765,0.55,3849.3,3848.8,0.7617]
[1734300212430,2.59789,3849.3,3848.8,0.7617]
[1734300213481,0.55,3849.6,3848.8,0.7617]
[1734300213675,0.55,3849.7,3848.9,0.7617]
[1734300214039,3.55,3849.7,3848.9,0.7617]
[1734300214637,3.55,3849.7,3848.1,2.59862]
[1734300214638,1.07186926,3849.8,3849.0,0.7617]
[1734300214881,1.07186926,3850.5,3849.2,2.18511393]
[1734300215083,1.07186926,3850.7,3849.7,0.7617]
[1734300215257,1.07186926,3850.9,3849.8,0.7617]
[1734300215556,0.53196186,3851.0,3849.8,0.7617]
[1734300215557,3.29372291,3850.8,3849.8,0.7617]
[1734300215758,3.66867926,3850.9,3849.8,0.7617]
[1734300216078,2.22225374,3850.8,3849.8,0.7617]
[1734300216292,0.55,3850.7,3849.8,0.7617]
[1734300216470,3.14687,3850.8,3849.8,0.7617]
[1734300216796,0.55,3850.6,3849.8,0.7617]
[1734300216984,1.07186926,3850.8,3850.0,2.59737]
[1734300217146,2.66229745,3851.2,3849.8,0.7617]
[1734300217147,1.07186926,3851.2,3849.8,0.7617]
[1734300217478,0.8889211,3851.1,3850.3,0.7617]
[1734300217685,1.07186926,3851.3,3850.3,0.7617]
[1734300218249,3.29410131,3851.4,3850.3,0.7617]
[1734300218578,2.22197912,3851.3,3850.3,0.7617]
[1734300218932,0.88889282,3851.2,3850.3,0.7617]
[1734300219183,1.07186926,3851.5,3850.4,3.35882]
[1734300219381,0.55,3851.4,3850.4,3.35882]
[1734300219753,3.0,3851.6,3850.7,0.8284]
[1734300219951,4.07186926,3851.7,3850.7,0.8284]
[1734300220286,2.22108122,3851.6,3850.7,0.8284]
[1734300220605,4.59333734,3851.8,3850.7,0.8284]
[1734300220750,2.59633,3851.6,3850.7,0.8284]
[1734300221359,0.55,3851.4,3850.7,0.8284]
[1734300221489,0.55,3851.2,3850.7,0.8284]
[1734300221874,2.59666,3851.1,3850.7,0.8284]
[1734300222279,0.55,3851.2,3849.6,0.8284]
[1734300222516,3.55,3850.9,3849.6,0.8284]
[1734300222690,2.59701,3850.6,3849.6,0.8284]
[1734300222994,0.55,3850.5,3849.6,0.8284]
[1734300224088,0.55,3850.8,3849.6,0.8284]
[1734300224675,0.55,3850.9,3849.6,0.8284]
[1734300225261,0.55,3850.7,3849.7,0.8284]
[1734300225763,3.14693,3850.7,3849.7,0.8284]
[1734300226397,0.55,3850.5,3849.7,0.8284]
[1734300227460,3.55,3850.9,3849.7,0.8284]
[1734300227674,2.59706,3850.5,3849.7,0.8284]
[1734300228694,0.55,3850.9,3849.7,0.8284]
[1734300228873,0.55,3850.1,3849.7,0.8284]
[1734300229303,1.07186926,3850.6,3849.7,0.8284]
[1734300229304,0.55,3850.4,3849.7,0.8284]
[1734300229511,2.59713,3850.4,3849.7,0.8284]
[1734300229674,0.55,3850.3,3849.7,0.8284]
[1734300229991,3.1472,3850.3,3849.7,0.8284]
[1734300230411,0.55,3850.5,3849.7,0.8284]
[1734300230699,0.55,3850.1,3849.7,0.8284]
[1734300230859,0.55,3850.1,3848.8,0.8284]
[1734300231060,2.5977,3849.6,3848.8,0.8284]
[1734300232098,1.62186926,3850.1,3848.8,0.8284]
[1734300232300,1.07186926,3850.3,3849.0,0.8284]
[1734300232461,2.5972,3850.3,3849.2,0.8284]
[1734300233473,0.55,3850.5,3849.2,0.8284]
[1734300233675,2.59732,3850.2,3849.2,0.8284]
[1734300234109,0.55,3850.5,3849.2,0.8284]
[1734300234110,3.1471,3850.5,3849.2,0.8284]
[1734300234324,3.1471,3850.5,3849.4,0.8284]
[1734300234905,2.5971,3850.5,3849.4,0.8284]
[1734300235105,4.07186926,3850.6,3849.4,0.8284]
[1734300235407,2.5972,3850.3,3849.4,0.8284]
[1734300235859,1.07186926,3850.6,3849.4,0.8284]
[1734300236066,3.0,3850.7,3849.4,0.8284]
[1734300236067,3.48687177,3850.5,3849.4,0.8284]
[1734300236210,4.07186926,3850.7,3849.4,0.8284]
[1734300236415,3.0,3850.6,3849.5,0.8284]
[1734300236735,0.55,3850.8,3849.6,0.8284]
[1734300236947,3.55,3850.8,3849.7,0.8284]
[1734300237269,3.14686,3850.8,3849.7,0.8284]
[1734300237413,3.14686,3850.8,3849.8,0.8284]
[1734300237414,3.0,3850.7,3849.8,0.8284]
[1734300238142,1.07186926,3851.0,3849.9,2.59746]
[1734300238340,1.07186926,3851.0,3850.0,0.8284]
[1734300239470,6.29668484,3851.0,3850.0,0.8284]
[1734300239611,0.88992623,3850.9,3850.2,0.7572]
[1734300239817,4.07186926,3851.0,3850.2,0.7572]
[1734300240181,0.88993539,3850.9,3850.2,0.7572]
[1734300240566,3.55,3850.8,3850.2,0.7572]
[1734300240857,2.59708,3850.5,3850.2,0.7572]
[1734300241518,0.55,3850.8,3850.2,0.7572]
[1734300241666,2.59716,3850.4,3850.2,0.7572]
[1734300242162,1.62186926,3850.8,3850.2,0.7572]
[1734300242163,4.62186926,3850.8,3850.2,0.7572]
[1734300242362,2.59709,3850.5,3849.2,0.7572]
[1734300243261,2.59716,3850.4,3850.0,1.0]
[1734300243461,4.07186926,3850.7,3850.0,1.0]
[1734300243462,2.59733,3850.1,3850.0,1.0]
[1734300245043,1.07186926,3850.4,3850.0,1.0]
[1734300245224,1.07186926,3851.0,3850.2,0.7572]
[1734300245429,0.52710029,3851.4,3850.6,0.7572]
[1734300245666,2.69042546,3852.0,3850.7,0.7572]
[1734300245667,1.07186926,3851.8,3850.7,0.7572]
[1734300245883,1.07186926,3851.9,3850.8,0.7572]
[1734300246061,2.59592,3852.2,3850.8,0.7572]
[1734300246062,1.07186926,3852.0,3850.8,0.7572]
[1734300246260,1.07186926,3852.0,3851.0,0.7572]
[1734300246436,0.89006931,3851.9,3851.0,0.7572]
[1734300246636,1.07186926,3852.1,3851.0,0.7572]
[1734300247063,4.07186926,3852.1,3851.0,0.7572]
[1734300247268,4.85136926,3851.9,3851.0,0.7572]
[1734300247571,2.59637,3851.6,3851.0,0.7572]
[1734300247950,2.59639,3851.5,3851.0,0.7572]
[1734300248271,0.55,3851.7,3851.0,0.7572]
[1734300248470,2.59644,3851.5,3851.0,0.7572]
[1734300250297,4.07186926,3851.9,3851.0,0.7572]
[1734300250469,4.07186926,3851.9,3850.8,2.59685]
[1734300250470,1.07186926,3852.2,3851.2,0.8241]
[1734300250671,1.58382297,3852.4,3851.2,0.8241]
[1734300250882,4.82152308,3852.3,3851.2,0.8241]
[1734300251069,2.59587,3852.3,3851.2,0.8241]
[1734300251267,0.89034,3852.2,3851.2,0.8241]
[1734300251467,2.59587,3852.3,3851.2,0.8241]
[1734300251874,3.0,3852.2,3851.2,0.8241]
[1734300252500,0.55,3852.3,3851.2,0.8241]
[1734300252705,2.59599,3852.1,3851.2,0.8241]
[1734300253378,3.0,3852.5,3851.4,2.59645]
[1734300253379,4.07186926,3852.5,3851.4,2.59645]
[1734300253576,1.07186926,3852.8,3851.6,0.8241]
[1734300253885,3.66735926,3852.9,3851.8,0.8241]
[1734300254083,1.58138238,3853.0,3851.8,0.8241]
[1734300254277,0.89010158,3852.9,3851.8,0.8241]
[1734300254801,2.59545,3852.9,3851.8,0.8241]
[1734300254971,2.59554,3852.8,3851.8,0.8241]
[1734300255806,0.50951312,3853.0,3851.8,0.8241]
[1734300255991,0.55,3852.9,3851.8,0.8241]
[1734300256803,2.59585,3852.3,3851.8,0.8241]
[1734300257323,0.55,3852.7,3851.8,0.8241]
[1734300257703,0.55,3852.5,3851.8,0.8241]
[1734300258042,2.59578,3852.4,3850.7,0.8241]
[1734300258245,1.07186926,3852.7,3850.9,0.8241]
[1734300258246,2.59598,3852.2,3850.9,0.8241]
[1734300258540,0.55,3852.6,3850.9,0.8241]
[1734300258541,2.59599,3852.1,3850.9,0.8241]
[1734300259324,2.59609,3852.0,3850.9,0.8241]
[1734300259526,2.59615,3851.9,3850.9,0.8241]
[1734300259906,2.59632,3851.6,3850.9,0.8241]
[1734300260108,3.0,3851.8,3850.9,0.8241]
[1734300260411,2.5962,3851.8,3850.9,0.8241]
[1734300260614,2.59632,3851.6,3850.9,0.8241]
[1734300260813,3.0,3851.5,3850.9,0.8241]
[1734300261819,3.0,3851.8,3850.9,0.8241]
[1734300264054,3.0,3851.7,3850.9,0.8241]
[1734300264647,2.59627,3851.7,3850.9,0.8241]
[1734300267883,2.59635,3851.6,3850.9,0.8241]
[1734300268459,2.59598,3852.1,3850.9,0.8241]
[1734300268460,0.8298,3852.0,3850.9,0.8241]
[1734300268658,2.59671,3851.1,3850.9,0.8241]
[1734300270277,2.59672,3851.0,3850.9,0.8241]
[1734300270592,2.59689,3850.8,3849.8,0.7883]
[1734300271361,2.59668,3851.1,3849.9,2.59747]
[1734300271561,1.07186926,3852.1,3850.9,2.18511393]
[1734300271792,1.07186926,3852.8,3851.1,2.59666]
[1734300271991,0.0088192,3853.1,3851.9,2.5961]
[1734300272217,0.0088192,3853.1,3851.4,0.7883]
[1734300272218,0.0088192,3853.1,3852.0,0.7883]
[1734300272918,2.6041592,3853.1,3852.0,0.7883]
[1734300273104,0.0088192,3853.1,3852.0,0.7883]
[1734300273417,2.59539,3853.0,3852.0,0.7883]
[1734300273786,2.59539,3853.0,3851.7,4.78130393]
[1734300274010,2.59539,3853.0,3851.8,0.77813039]
[1734300274912,2.59544,3852.9,3851.8,0.77813039]
[1734300275119,2.59557,3852.8,3851.8,0.77813039]
[1734300276238,0.0088192,3853.1,3851.8,0.77813039]
[1734300276527,2.59544,3852.9,3851.8,0.77813039]
[1734300276730,2.59579,3852.4,3851.3,2.18511393]
[1734300277406,0.0088192,3853.1,3851.3,2.18511393]
[1734300277604,2.59586,3852.3,3851.3,2.18511393]
[1734300279336,0.0088192,3853.1,3851.3,2.18511393]
[1734300279580,0.0088192,3853.1,3851.1,0.50987148]
[1734300279704,2.59605,3852.0,3851.2,0.56949854]
[1734300280603,2.59619,3851.8,3851.2,0.56949854]
[1734300280800,2.59619,3851.8,3851.1,0.13237969]
[1734300281002,2.59583,3852.4,3850.9,2.18511393]
[1734300281265,2.59605,3852.0,3850.9,2.18511393]
[1734300282064,2.5957,3852.6,3850.9,5.18511393]
[1734300282542,2.59605,3852.0,3850.9,5.18511393]
[1734300282710,2.59605,3852.0,3851.0,0.77819439]
[1734300283112,3.11454427,3852.8,3851.0,0.77819439]
[1734300283315,2.59634,3851.6,3850.5,2.31199791]
[1734300283619,2.59634,3851.6,3850.5,5.31199791]
[1734300284326,2.59639,3851.5,3850.5,2.31199791]
[1734300284650,2.59564,3852.6,3850.5,2.18511393]
[1734300284651,2.59646,3851.4,3850.5,2.18511393]
[1734300284848,2.59646,3851.4,3850.5,2.40362532]
[1734300285415,1.07186926,3852.4,3850.5,2.40362532]
[1734300285611,2.59653,3851.3,3850.5,2.18511393]
[1734300285826,2.59653,3851.3,3850.2,0.12956393]
[1734300286268,2.5966,3851.2,3850.2,0.12956393]
[1734300286483,2.5966,3851.2,3850.3,0.28371378]
[1734300287958,2.59673,3851.0,3850.3,0.28371378]
[1734300288542,2.59689,3850.8,3850.3,0.28371378]
[1734300288719,2.59659,3851.2,3849.7,2.18511393]
[1734300288916,2.6057592,3850.7,3849.7,2.18511393]
[1734300289227,0.0088192,3850.7,3849.7,2.18511393]
[1734300289584,2.5971,3850.5,3849.7,2.18511393]
[1734300289716,2.59714,3850.4,3849.8,0.57025272]
[1734300290347,0.0088192,3850.7,3849.8,0.57025272]
[1734300290348,2.5972,3850.3,3849.8,0.57025272]
[1734300290762,2.59762,3849.7,3849.0,2.18511393]
[1734300291261,0.0088192,3850.7,3849.0,2.18511393]
[1734300291262,5.19426,3850.4,3849.0,2.18511393]
[1734300291428,2.5975,3849.9,3849.0,2.18511393]
[1734300291628,2.5975,3849.9,3849.1,0.21851139]
[1734300292739,2.59732,3850.2,3849.1,0.21851139]
[1734300293024,0.52125516,3850.6,3848.7,2.59826]
[1734300293224,2.59749,3849.9,3848.8,3.0]
[1734300296695,0.0088192,3850.7,3849.0,2.18511393]
[1734300296825,2.59706,3850.5,3849.4,2.18511393]
[1734300297021,2.59706,3850.5,3849.5,0.51851139]
[1734300297223,0.0088192,3850.7,3849.5,3.51851139]
[1734300297224,2.6057492,3850.7,3849.5,3.51851139]
[1734300297458,0.0088192,3850.7,3849.5,3.51851139]
[1734300297659,0.0088192,3850.7,3849.7,2.59758]
[1734300297829,0.0088192,3850.7,3849.8,0.61160914]
[1734300299450,2.597,3850.6,3849.8,0.61160914]
[1734300300450,0.0088192,3850.7,3849.5,3.51851139]
[1734300300451,0.0088192,3850.7,3849.5,0.51851139]
[1734300300769,2.59719,3850.4,3848.9,0.52111055]
[1734300300974,2.6057992,3850.7,3849.3,2.59785]
[1734300301454,2.59699,3850.6,3849.3,2.59785]
[1734300301662,2.59699,3850.6,3849.5,2.59773]
[1734300301874,2.59699,3850.6,3849.6,0.7662]
[1734300302075,2.5971,3850.5,3849.6,0.7662]
[1734300302372,0.0088192,3850.7,3849.6,0.7662]
[1734300302575,0.0088192,3850.7,3849.6,3.36386]
[1734300302774,0.0088192,3850.7,3848.9,3.0]
[1734300302775,0.0088192,3850.7,3849.7,1.102586]
[1734300302989,0.0088192,3850.7,3849.7,0.7662]
[1734300303356,0.0088192,3850.7,3849.8,2.59753]
[1734300303692,0.0088192,3850.7,3850.1,2.59733]
[1734300303892,0.0088192,3850.7,3850.2,0.7662]
[1734300304396,0.0088192,3850.7,3850.4,3.36332]
[1734300304570,0.0088192,3850.7,3850.6,3.7662]
[1734300304769,0.0088192,3850.7,3850.6,6.36319]
[1734300305264,0.0088192,3850.7,3850.6,0.7662]
[1734300305450,0.0088192,3850.7,3850.6,1.402533]
[1734300307795,0.0088192,3850.7,3850.6,0.7662]
[1734300309802,0.0088192,3850.7,3849.6,0.8111]
[1734300309993,2.59708,3850.5,3849.6,0.8111]
[1734300310618,2.59707,3850.5,3849.6,0.8111]
[1734300311616,0.0088192,3850.7,3849.6,0.8111]
[1734300311918,2.59741,3850.0,3849.6,0.8111]
[1734300312237,2.5973,3850.2,3849.6,0.8111]
[1734300312384,2.59699,3850.6,3849.6,0.8111]
[1734300313011,2.59729,3850.2,3849.6,0.8111]
[1734300313321,2.59734,3850.1,3849.6,0.8111]
[1734300313514,2.59736,3850.1,3849.6,0.8111]
[1734300313713,0.0088192,3850.7,3849.6,0.8111]
[1734300313915,2.59706,3850.5,3849.6,0.8111]
[1734300314216,2.59758,3849.8,3849.6,0.8111]
[1734300315282,2.59734,3850.1,3849.6,0.8111]
[1734300315925,0.0088192,3850.7,3849.6,0.8111]
[1734300316084,2.59745,3850.0,3849.6,0.8111]
[1734300316899,0.8262,3850.3,3849.6,0.8111]
[1734300317099,2.59777,3849.5,3849.1,0.8113]
[1734300318492,2.59781,3849.4,3849.1,0.8113]
[1734300318827,2.59726,3850.2,3849.1,0.8113]
[1734300319027,2.59756,3849.8,3849.1,0.8113]
[1734300319331,2.59761,3849.7,3849.1,0.8113]
[1734300319527,0.8262,3850.3,3849.1,0.8113]
[1734300319696,2.59767,3849.6,3849.1,0.8113]
[1734300319896,0.0088192,3850.7,3849.5,2.18511393]
[1734300320125,0.0088192,3850.7,3849.7,0.7737]
[1734300320300,0.0088192,3850.7,3849.7,1.21274592]
[1734300320499,0.0088192,3850.7,3849.8,0.7737]
[1734300320915,0.0088192,3850.7,3850.0,0.7737]
[1734300322742,2.597,3850.6,3850.0,0.7737]
[1734300323106,0.0088192,3850.7,3850.0,0.7737]
[1734300324758,0.0088192,3850.7,3850.2,0.7737]
[1734300325857,2.6057692,3850.7,3850.2,0.7737]
[1734300326020,0.0088192,3850.7,3850.2,0.7737]
[1734300326220,2.59713,3850.4,3850.2,0.7737]
[1734300326462,2.59699,3850.6,3850.2,0.7737]
[1734300326819,2.59707,3850.5,3850.2,0.7737]
[1734300327024,2.59711,3850.5,3850.2,0.7737]
[1734300328258,0.0088192,3850.7,3850.2,0.7737]
[1734300330167,2.59711,3850.5,3850.2,0.7737]
[1734300330325,2.59714,3850.4,3850.2,0.7737]
[1734300331258,2.59721,3850.3,3849.7,0.8061]
[1734300332240,0.05592223,3850.2,3849.7,0.8061]
[1734300332447,2.59721,3850.3,3849.7,0.8061]
[1734300332734,0.0088192,3850.7,3849.7,0.8061]
[1734300332735,0.05364111,3850.2,3849.7,0.8061]
[1734300333066,2.59721,3850.3,3849.7,0.8061]
[1734300333431,0.05364111,3850.2,3849.7,0.8061]
[1734300334551,2.59713,3850.4,3849.7,0.8061]
[1734300334754,0.05354042,3850.1,3849.7,0.8061]
[1734300334971,2.59713,3850.4,3849.7,0.8061]
[1734300335270,0.05350748,3850.0,3849.8,0.55]
[1734300335429,0.0088192,3850.7,3850.1,0.8061]
[1734300335838,0.0088192,3850.7,3850.3,0.8061]
[1734300336142,0.05180582,3850.6,3850.3,0.8061]
[1734300336358,0.0088192,3850.7,3850.3,0.8061]
[1734300336889,0.0088192,3850.7,3850.5,0.8061]
[1734300337027,0.0088192,3850.7,3850.6,1.446428]
[1734300337874,0.0088192,3850.7,3850.6,0.8061]
[1734300338181,0.06125223,3850.7,3850.6,0.8061]
[1734300338469,0.0088192,3850.7,3850.6,0.8061]
[1734300340787,0.0088192,3850.7,3850.6,10.19233492]
[1734300340995,0.0088192,3850.7,3850.6,9.10947837]
[1734300341283,0.0088192,3850.7,3850.6,14.89698607]
[1734300341484,2.59554,3852.8,3851.6,3.0]
[1734300341659,1.84366926,3853.0,3851.7,0.8277]
[1734300341848,2.59565,3852.6,3851.7,0.8277]
[1734300342244,0.04959937,3852.5,3851.7,0.8277]
[1734300342462,0.04959937,3852.5,3851.8,0.38277]
[1734300343282,2.5955,3852.9,3851.8,0.38277]
[1734300343445,2.5955,3852.9,3851.9,0.8277]
[1734300343646,0.04968239,3852.8,3851.9,0.8277]
[1734300344193,2.64520239,3852.8,3851.9,0.8277]
[1734300345680,2.64520239,3852.8,3852.1,2.59597]
[1734300345681,0.04968239,3852.8,3852.1,2.59597]
[1734300345917,0.04968239,3852.8,3852.3,0.8213]
[1734300346077,3.40989,3853.3,3852.3,0.8213]
[1734300346298,0.8147,3853.3,3852.3,0.8213]
[1734300346704,3.40988,3853.3,3852.3,0.8213]
[1734300346907,0.05114244,3853.2,3852.3,0.8213]
[1734300347578,2.59538,3853.0,3852.3,0.8213]
[1734300347979,0.05105943,3852.9,3852.3,0.8213]
[1734300349258,0.8147,3853.3,3852.3,0.8213]
[1734300349259,2.59538,3853.0,3852.3,0.8213]
[1734300349449,0.05103175,3852.8,3852.3,0.8213]
[1734300349689,2.59538,3853.0,3852.3,0.8213]
[1734300349690,0.05105943,3852.9,3852.3,0.8213]
[1734300349893,0.05100408,3852.7,3852.3,0.8213]
[1734300350056,0.05103175,3852.8,3852.3,0.8213]
[1734300350255,0.05100408,3852.7,3852.5,0.783]
[1734300350498,2.59500233,3853.6,3852.5,0.783]
[1734300350705,0.04994192,3853.5,3852.5,0.783]
[1734300350866,0.04994192,3853.5,3852.7,0.8277]
[1734300352189,0.04994192,3853.5,3852.8,0.55]
[1734300352394,2.59461,3854.2,3853.1,3.0]
[1734300352571,3.11267318,3854.2,3853.2,0.8277]
[1734300352772,0.05037863,3854.1,3853.4,0.8277]
[1734300353104,0.05035097,3854.0,3853.4,0.8277]
[1734300353293,0.7632,3855.0,3853.6,0.8277]
[1734300353496,2.59417,3854.8,3853.6,0.8277]
[1734300353813,0.04907757,3854.7,3853.8,0.8277]
[1734300353973,2.64332757,3854.7,3853.8,0.8277]
[1734300354384,0.04907757,3854.7,3853.8,0.8277]
[1734300354584,0.7632,3855.0,3853.8,0.8277]
[1734300354907,3.35723,3855.0,3854.0,0.8277]
[1734300355080,4.77827393,3856.3,3854.2,2.18511393]
[1734300355081,2.59388,3855.3,3854.2,2.18511393]
[1734300355268,3.66502926,3856.3,3854.3,0.8277]
[1734300355269,0.7632,3855.8,3854.3,0.8277]
[1734300355467,2.59371,3855.5,3854.3,0.8277]
[1734300355824,0.045201,3855.4,3854.3,0.8277]
[1734300356007,0.045201,3855.4,3854.4,0.56074439]
[1734300356396,0.045201,3855.4,3854.8,0.8277]
[1734300356596,0.7632,3856.2,3855.1,2.18511393]
[1734300356921,2.59312,3856.4,3855.5,2.18511393]
[1734300357105,2.59312,3856.4,3855.6,0.8277]
[1734300357106,0.04969556,3856.3,3855.6,0.8277]
[1734300357628,0.04969556,3856.3,3855.9,2.18511393]
[1734300357837,0.7632,3857.4,3856.0,0.8277]
[1734300357981,0.05011528,3856.2,3856.0,1.21604888]
[1734300358195,0.7632,3857.4,3856.0,1.21604888]
[1734300358393,0.04840702,3856.1,3856.0,1.21604888]
[1734300358588,2.59248,3857.3,3856.0,1.21604888]
[1734300358830,0.04840702,3856.1,3856.0,0.8277]
[1734300358997,2.59309,3856.4,3856.0,0.8277]
[1734300359237,0.04840702,3856.1,3856.0,0.8277]
[1734300359394,2.59309,3856.4,3856.0,0.8277]
[1734300359609,0.04840702,3856.1,3856.0,0.8277]
[1734300359811,3.0,3857.3,3856.0,0.8277]
[1734300360038,0.04840702,3856.1,3856.0,0.8277]
[1734300360208,2.59305,3856.5,3856.0,0.8277]
[1734300360519,0.8145,3856.5,3855.4,0.8076]
[1734300360801,2.59344,3855.9,3855.4,0.8076]
[1734300361196,0.04832414,3855.8,3855.4,0.8076]
[1734300361514,2.59379,3855.4,3854.8,0.8076]
[1734300361697,2.59379,3855.4,3854.8,0.85503622]
[1734300361698,0.0489659,3855.3,3854.8,0.85503622]
[1734300362139,0.0489659,3855.3,3854.9,0.04743498]
[1734300364203,2.59362,3855.7,3854.9,0.04743498]
[1734300364424,0.04870432,3855.2,3854.9,0.04743498]
[1734300364730,0.8145,3856.5,3854.9,0.04743498]
[1734300364930,3.0,3856.7,3854.9,0.04743498]
[1734300364931,0.04861952,3855.1,3854.9,0.04743498]
[1734300365143,2.59399,3855.1,3854.9,0.04743498]
[1734300365316,0.04859188,3855.0,3854.9,0.04743498]
[1734300366187,2.59383,3855.3,3854.9,0.04743498]
[1734300366391,0.04859188,3855.0,3854.9,0.04743498]
[1734300366529,2.59383,3855.3,3854.9,0.04743498]
[1734300366723,0.04852236,3855.2,3854.9,0.04743498]
[1734300366961,2.594,3855.1,3854.9,0.04743498]
[1734300367152,2.64249472,3855.1,3854.9,0.04743498]
[1734300367978,2.64249472,3855.1,3854.4,0.7998]
[1734300367979,0.86439472,3855.1,3854.4,0.7998]
[1734300368185,2.59421,3854.8,3854.4,0.7998]
[1734300368320,2.64250748,3855.0,3854.1,0.7998]
[1734300368527,2.59421,3854.8,3854.1,0.7998]
[1734300368755,0.04839454,3854.7,3854.1,0.7998]
[1734300369356,2.5943,3854.6,3854.1,0.7998]
[1734300369519,0.04836689,3854.6,3854.1,0.7998]
[1734300369725,2.59445,3854.4,3853.6,0.8227]
[1734300369925,0.04828394,3854.3,3853.6,1.33583966]
[1734300370125,2.59438,3854.5,3853.6,1.94745102]
[1734300370344,2.64247636,3854.4,3853.6,1.99490201]
[1734300370622,2.64247636,3854.4,3853.7,0.04744976]
[1734300372335,0.04804636,3854.4,3853.7,0.04744976]
[1734300372552,3.40992,3855.1,3853.7,0.04744976]
[1734300372748,0.04801871,3854.3,3853.7,0.04744976]
[1734300372953,2.59432,3854.6,3853.7,0.04744976]
[1734300373149,0.04799106,3854.2,3853.7,0.04744976]
[1734300373357,2.59432,3854.6,3853.6,1.94745102]
[1734300373656,0.0479634,3854.1,3853.6,1.94745102]
[1734300373964,0.04793575,3854.0,3853.7,0.4132565]